Cogmind - Beta 10.2 @@@ ROGUE MODE // 2022.01.17 @ 01:44:08 Player: Zailor Result: Destroyed by S-43 Plague with Heavy Machine Gun Performance ------------- Evolutions (9) 4500 Regions Visited (18) 3600 Robots Destroyed (213) 1065 Value Destroyed (9495) 9495 Prototype IDs (9) 180 Alien Tech Used (0) 0 Bonus (1121) 1121 TOTAL SCORE: 19961 Bonus ------- High Alert Combat Kills 503 Follower Combat Kills 657 Friendly Fire -39 Cogmind --------- Core Integrity 0/1600 Matter 186/300 Energy 99/100 System Corruption 25% Temperature Cool (0) Movement Core (50) Location -1/Access Parts ------- > --- POWER (2) -------- (None) > --- PROPULSION (4) --- (None) > --- UTILITY (16) ----- Advanced System Shield > --- WEAPON (3) ------- (None) > --- INVENTORY (4) ---- Gamma Rifle Enhanced Nova Cannon Enhanced Gauss Cannon Peak State ------------ > --- POWER ------------ Particle Reactor Light Quantum Reactor > --- PROPULSION ------- Improved Antigrav System Improved Antigrav System Improved Antigrav System Improved Antigrav System > --- UTILITY ---------- Advanced Heat Sink Large Storage Unit Energy Well Matter Compressor Improved Matter Compressor Long-range Sensor Array Advanced Signal Interpreter Improved Targeting Computer Advanced Targeting Computer Advanced Target Analyzer Improved Core Analyzer Layered Light Armor Plating Layered Heavy Armor Plating Improved Shock Absorption System Advanced System Shield > --- WEAPON ----------- Enhanced Quantum Rifle Nova Cannon Advanced Micro-nuke Launcher > --- INVENTORY -------- Light Particle Reactor Light Particle Reactor Layered Heavy Armor Plating Enhanced Nova Cannon Hypervelocity Gauss Rifle Hypervelocity Railgun Enhanced Gauss Cannon Hardcell Cannon Lance [Rating: 153] Favorites ----------- Power Light Antimatter Reactor Engine Improved Ion Engine Power Core Micro Fission Core Reactor Light Antimatter Reactor Propulsion Medium Treads Treads Medium Treads Leg Myomer Leg Wheel Wheel Hover Unit Improved Antigrav System Utility Large Storage Unit Device Advanced Heat Sink Storage Large Storage Unit Processor Advanced Signal Interpreter Hackware Advanced System Shield Protection Improved Light Armor Plating Weapon Gauss Rifle Energy Gun Advanced Variable Charge Gun Energy Cannon Nova Cannon Ballistic Gun Gauss Rifle Ballistic Cannon Hardcell Cannon Launcher Grenade Launcher Special Weapon Mining Laser Piercing Weapon Heavy Pick Build | -11 -10 -9 -8 -7 -6 -6 -6 -6 -6 -5 -4 -4 -4 -4 -3 -3 -2 -1 ------- Run | Scr Mat Mat Mat Fac Fac Ext Cet Arc Hub Fac Fac Upp Upp War Pro Res Res Acc Slots Evolved 18 | . . 2 2 2 2 . . . . 2 2 . . . . 2 2 2 Power 1 | . . . . . . . . . . . 1 . . . . . . . Propulsion 2 | . . 1 . 1 . . . . . . . . . . . . . . Utility 14 | . . 1 2 1 2 . . . . 2 1 . . . . 2 2 1 Weapon 1 | . . . . . . . . . . . . . . . . . . 1 Parts Attached 269 | 6 5 18 19 13 17 17 11 5 1 29 19 4 24 4 9 14 12 42 Power 29 | 1 1 1 2 . 4 2 . 1 . 2 4 . 1 1 1 . 2 6 Engine 12 | 1 1 1 2 . 4 2 . . . 1 . . . . . . . . Core 4 | . . . . . . . . . . . 4 . . . . . . . Reactor 13 | . . . . . . . . 1 . 1 . . 1 1 1 . 2 6 Propulsion 55 | 2 . 7 3 5 4 1 6 1 . 3 3 . 5 . 3 4 . 8 Treads 34 | . . 7 3 3 4 1 6 1 . 2 3 . 4 . . . . . Leg 15 | 2 . . . 2 . . . . . 1 . . 1 . 3 4 . 2 Wheel 2 | . . . . . . . . . . . . . . . . . . 2 Hover 4 | . . . . . . . . . . . . . . . . . . 4 Flight . | . . . . . . . . . . . . . . . . . . . Utility 84 | 1 2 2 5 5 5 6 1 . 1 13 5 2 8 3 3 7 4 11 Device 36 | . . . 3 1 2 4 . . . 5 3 2 3 2 1 4 1 5 Storage 14 | 1 1 1 . 1 . 1 . . . . 1 . 3 . 1 1 . 3 Processor 15 | . 1 1 . 1 2 . . . . 6 . . . 1 . . 3 . Hackware 1 | . . . . . . . . . . . . . . . . 1 . . Protection 18 | . . . 2 2 1 1 1 . 1 2 1 . 2 . 1 1 . 3 Artifact . | . . . . . . . . . . . . . . . . . . . Weapon 101 | 2 2 8 9 3 4 8 4 3 . 11 7 2 10 . 2 3 6 17 Energy Gun 17 | 2 1 1 . 1 . . . 1 . 3 2 . 1 . 2 . 1 2 Energy Cannon 6 | . . . . . . 1 . . . . . . 2 . . . 1 2 Ballistic Gun 45 | . . 7 6 1 3 4 3 1 . 4 3 1 5 . . 1 1 5 Ballistic Cannon 6 | . . . . 1 . . . . . . 1 . 1 . . 1 . 2 Launcher 14 | . 1 . 2 . . 1 1 . . 1 1 . . . . . 2 5 Special Weapon 1 | . . . 1 . . . . . . . . . . . . . . . Impact Weapon . | . . . . . . . . . . . . . . . . . . . Slashing Weapon . | . . . . . . . . . . . . . . . . . . . Piercing Weapon 12 | . . . . . 1 2 . 1 . 3 . 1 1 . . 1 1 1 Special Melee Weapon . | . . . . . . . . . . . . . . . . . . . Unidentified Prototypes 9 | . . . . . . 1 2 1 . . . . . . . 1 2 2 Parts Lost 102 | . . 1 2 4 2 3 4 1 . 8 7 1 24 . 4 . 8 33 Power 13 | . . . 1 . 1 1 . 1 . . 1 . 3 . . . 1 4 Propulsion 26 | . . . . 2 . 1 2 . . 3 2 1 3 . 2 . 1 9 Utility 38 | . . . 1 1 1 1 . . . 4 1 . 11 . 1 . 5 12 Weapon 25 | . . 1 . 1 . . 2 . . 1 3 . 7 . 1 . 1 8 Highest Loss Streak 21 | . . 1 2 2 1 2 2 1 . 3 4 1 17 . 2 . 5 21 Average Slot Usage (%) 89 | . 90 98 97 95 99 100 93 93 93 90 88 91 76 67 85 95 96 66 Engine 3 | . 14 11 9 7 6 6 6 2 . . . . . . . . . . Core 1 | . . . . . . . . . . . 6 10 6 . . . . . Reactor 2 | . . . . . . . . 4 6 4 . . . 3 8 9 7 5 Treads 14 | . . 28 27 21 23 26 20 20 20 13 11 12 12 10 5 . . . Leg 4 | . 28 3 . 4 2 . . . . 1 1 . . 5 10 19 16 5 Device 12 | . . . 7 9 12 13 13 13 13 19 10 13 12 15 21 19 18 6 Storage 14 | . 14 22 18 15 13 13 13 13 13 11 12 15 11 15 18 16 17 13 Processor 15 | . 4 11 9 9 17 20 20 20 20 18 26 22 16 6 10 9 15 17 Protection 5 | . . . 8 9 8 6 6 6 6 5 6 5 3 . . 8 5 3 Energy Gun 2 | . 26 10 . 2 . . . 3 6 3 . . . . 2 1 1 1 Ballistic Gun 7 | . . 11 17 9 9 10 12 8 6 4 8 7 7 5 1 2 3 2 Ballistic Cannon 1 | . . . . 2 2 . . . . . . . 1 5 5 2 2 . Naked Turns . | . . . . . . . . . . . . . . . . . . . Heaviest Build 119 | 12 26 45 56 77 77 81 82 82 80 91 91 92 91 43 68 93 95 119 Greatest Support 138 | 20 20 60 63 76 112 112 138 136 131 131 133 133 133 98 98 100 100 75 Greatest Overweight (x) 7 | 3 1 2 . 1 1 . . . . 5 1 1 1 . 3 . 1 7 Average Overweight (x) . | . . . . . . . . . . . . . . . . . . 1 Largest Inventory Capacity 18 | 6 10 16 16 18 18 18 18 18 18 18 18 18 18 4 4 10 10 14 Average Capacity 14 | 5 6 16 16 16 18 18 18 18 18 18 18 18 13 4 4 7 10 9 Most Carried 18 | 4 7 16 16 18 18 18 18 18 18 18 18 18 18 4 4 10 10 10 Average Carried 13 | 2 5 14 15 16 17 17 17 17 17 17 17 17 12 3 3 6 8 7 Final Capacity 18 | 6 10 16 16 18 18 18 18 18 18 18 18 18 4 4 4 10 10 4 Final Carried 18 | 4 7 16 16 18 18 18 18 18 18 17 18 18 4 4 4 10 8 3 Class Distribution -------------------- 53% | Scavenger-Mutant 37% | Mutant 7% | Commander-Mutant Dominant Class ---------------- Mutant | -10/Materials Scavenger-Mutant | -9/Materials Scavenger-Mutant | -8/Materials Mutant | -7/Factory Mutant | -6/Factory Mutant | -6/Extension Scavenger-Mutant | -6/Cetus Scavenger-Mutant | -6/Archives Scavenger-Mutant | -6/Hub_04(d) Scavenger-Mutant | -5/Factory Scavenger-Mutant | -4/Factory Scavenger-Mutant | -4/Upper Caves Scavenger-Mutant | -4/Upper Caves Commander-Mutant | -4/Warlord Scavenger-Mutant | -3/Proximity Caves Commander-Mutant | -3/Research Scavenger-Mutant | -2/Research Mutant | -1/Access Resources | -11 -10 -9 -8 -7 -6 -6 -6 -6 -6 -5 -4 -4 -4 -4 -3 -3 -2 -1 ----------- Run | Scr Mat Mat Mat Fac Fac Ext Cet Arc Hub Fac Fac Upp Upp War Pro Res Res Acc Matter Collected 6319 | 260 190 458 370 351 420 709 495 186 42 302 503 125 532 . 355 248 249 524 Remotely . | . . . . . . . . . . . . . . . . . . . Salvage Created 8953 | . 219 578 329 484 472 746 847 329 130 910 769 85 890 . 172 253 488 1252 Parts 485 | . 13 45 33 12 26 27 36 14 7 55 46 2 30 . 5 20 32 82 Haulers Intercepted . | . . . . . . . . . . . . . . . . . . . Recyclers Shooed 10 | . 1 . . 2 . 1 . . . 3 . . . . . . 1 2 Parts Field Recycled . | . . . . . . . . . . . . . . . . . . . Retrieved Matter . | . . . . . . . . . . . . . . . . . . . Parts Self-Destructed 38 | . . . . . . . . . . . . 1 25 . 12 . . . Prevented 16 | . . . . . . . . . . . . . 8 . 8 . . . Kills | -11 -10 -9 -8 -7 -6 -6 -6 -6 -6 -5 -4 -4 -4 -4 -3 -3 -2 -1 ------- Run | Scr Mat Mat Mat Fac Fac Ext Cet Arc Hub Fac Fac Upp Upp War Pro Res Res Acc Combat Hostiles Destroyed 174 | . 9 14 17 9 9 8 15 4 2 14 18 1 13 . 2 4 12 23 Melee 1 | . . . . . . . . . . . . . 1 . . . . . Guns 112 | . 6 14 12 4 5 7 13 4 2 12 16 1 6 . 1 1 5 3 Cannons 29 | . . . . 5 4 . . . . . 1 . 6 . 1 2 2 8 AOE 31 | . 3 . 5 . . 1 2 . . 1 1 . . . . 1 5 12 Classes Destroyed 12 | . 3 2 . 2 . 1 1 . . 1 . . 1 . . . . 1 Worker 18 | . 1 . 1 . 1 . . . . 3 . . . . . . 1 11 Builder 10 | . . . . . . . . . . 1 1 . . . . . . 8 Tunneler 2 | . . . . . . 1 . . . . . . . . . . . 1 Recycler 6 | . . . . 1 . 2 . . . 1 . . . . . . . 2 Watcher 3 | . . . . . . . . . . . . . . . . . . 3 Swarmer 50 | . 3 3 12 . . . 3 . . 4 9 . 1 . . . 9 6 Grunt 47 | . 6 5 3 5 6 7 5 . 1 2 2 . 4 . 1 . . . Brawler 2 | . . . . . . . . . . . . . 1 . 1 . . . Duelist 6 | . . 1 . . . . . . . . 1 . 4 . . . . . Sentry 25 | . . 5 2 3 1 1 . 4 1 2 2 1 1 . . 1 1 . Hunter 17 | . . . . . . . 2 . . 2 . . 2 . . . . 11 Programmer 23 | . . . . 1 2 . 1 . . 4 4 . . . . 3 2 6 Cetus Guard 4 | . . . . . . . 4 . . . . . . . . . . . Best Kill Streak 19 | . 4 3 5 2 4 3 6 2 1 6 10 1 5 . 1 1 9 19 Combat Bots Only 10 | . 3 3 4 2 4 3 6 2 1 6 10 1 5 . 1 1 8 8 Max Kills in Single Turn 8 | . 3 2 3 1 1 1 2 1 1 3 2 1 1 . 1 1 4 8 Gunslinging 1 | . . 1 1 . . . 1 . . . . . . . . . . . Exploded 3 | . 2 . 2 . . 1 1 . . 1 1 . . . . 1 3 3 Melee 1 | . . . . . . . . . . . . . 1 . . . . . Uniques/NPCs Destroyed . | . . . . . . . . . . . . . . . . . . . Combat | -11 -10 -9 -8 -7 -6 -6 -6 -6 -6 -5 -4 -4 -4 -4 -3 -3 -2 -1 -------- Run | Scr Mat Mat Mat Fac Fac Ext Cet Arc Hub Fac Fac Upp Upp War Pro Res Res Acc Damage Taken 23308 | . 209 766 803 751 660 1058 1523 691 213 1149 2223 356 4822 . 342 437 1113 6192 Core 3629 | . 52 115 48 60 30 39 284 92 20 36 212 . 916 . 12 . 97 1616 Absorbed by Shields 655 | . . . . . . 57 . . . . . . . . 174 106 216 102 Reduced by Siege Mode 36 | . . . . . . . . . . . . . 36 . . . . . Core Remaining (%) 76 | 100 79 71 91 91 . . . . 45 96 . . . . . 100 93 . Volleys Fired 561 | . 18 38 35 43 29 50 45 22 8 44 46 4 47 . 10 14 20 88 Largest 3 | . 2 2 2 2 2 2 2 2 2 2 2 2 2 . 2 2 2 3 Hottest 240 | . 80 103 100 86 76 108 63 110 110 113 113 61 121 . 153 98 146 240 Shots Fired 986 | . 32 72 58 75 58 92 86 39 16 83 75 7 90 . 18 28 37 120 Gun 783 | . 28 72 46 56 41 72 83 39 16 81 67 7 73 . 8 14 27 53 Cannon 159 | . . . . 19 17 18 . . . . 7 . 17 . 10 14 8 49 Launcher 38 | . 4 . 6 . . 2 3 . . 2 1 . . . . . 2 18 Special 6 | . . . 6 . . . . . . . . . . . . . . . Kinetic 718 | . . 45 46 56 58 72 83 31 8 37 67 7 76 . 13 28 17 74 Thermal 165 | . 14 13 6 19 . 18 . 8 8 19 6 . 3 . 5 . 18 28 Explosive 38 | . 4 . 6 . . 2 3 . . 2 1 . . . . . 2 18 Electromagnetic 65 | . 14 14 . . . . . . . 25 1 . 11 . . . . . Robot Hit Streak 42 | . 7 11 17 15 13 18 17 23 15 21 13 5 28 . 9 7 18 42 Robot Miss Streak 4 | . 3 2 2 2 3 2 2 1 1 1 2 1 3 . 2 4 2 4 Penetration Max 2 | . . . . 1 1 1 1 . . 1 1 . 1 . . . . 2 Secondary Targets 20 | . 1 1 2 1 . 3 4 . 1 2 2 . . . . . 3 . Max Gunslinging Chain 1 | . 1 1 1 1 . 1 1 . 1 1 1 . . . . . 1 . Shots Hit Robots 749 | . 19 58 36 54 44 76 68 36 15 67 53 5 77 . 12 18 27 84 Core Hits 453 | . 17 24 28 20 25 36 40 15 5 35 32 5 39 . 7 9 24 92 Critical Hits 85 | . . . . 3 1 6 21 3 1 10 8 1 6 . . 6 5 14 Critical Kills 32 | . . . . 1 . 3 9 . . 4 5 . 2 . . 2 3 3 Critical Parts Destroyed 44 | . . . . 2 1 3 8 3 1 5 2 1 4 . . 2 2 10 Melee Attacks 51 | . . . . . 5 5 . 1 . 10 . 6 6 . . 4 6 8 Impact . | . . . . . . . . . . . . . . . . . . . Slashing . | . . . . . . . . . . . . . . . . . . . Piercing 51 | . . . . . 5 5 . 1 . 10 . 6 6 . . 4 6 8 Sneak Attacks . | . . . . . . . . . . . . . . . . . . . Combat Hostiles . | . . . . . . . . . . . . . . . . . . . Follow-up Attacks . | . . . . . . . . . . . . . . . . . . . Damage Inflicted 24770 | . 669 836 972 1212 1255 2255 1419 672 411 2004 1788 138 2007 . 347 591 1208 6986 Guns 12934 | . 251 788 434 855 975 1450 1122 672 411 1890 1371 138 1435 . 164 88 327 563 Cannons 3928 | . . . . 357 280 464 . . . . 166 . 469 . 183 402 315 1292 Explosions 7744 | . 418 48 538 . . 283 297 . . 114 251 . . . . 101 566 5128 Melee 161 | . . . . . . 58 . . . . . . 103 . . . . . Ramming 3 | . . . . . . . . . . . . . . . . . . 3 Kinetic 11980 | . . 472 434 898 1255 1450 1122 431 184 779 1418 138 1639 . 255 490 76 939 Thermal 3930 | . 110 216 . 314 . 464 . 241 227 632 100 . 52 . 92 . 566 916 Explosive 7696 | . 418 . 538 . . 283 297 . . 114 251 . . . . 101 566 5128 Electromagnetic 1000 | . 141 148 . . . . . . . 479 19 . 213 . . . . . Impact . | . . . . . . . . . . . . . . . . . . . Slashing . | . . . . . . . . . . . . . . . . . . . Piercing 161 | . . . . . . 58 . . . . . . 103 . . . . . Highest Corruption 25 | . . . 1 . 1 1 1 1 1 3 9 12 23 23 2 . 4 25 Average Corruption 5 | . . . 1 . 1 1 1 1 1 2 6 10 15 23 2 . 2 10 Corruption Purged . | . . . . . . . . . . . . . . . . . . . Effects 176 | . . . 2 . 1 7 5 . 1 11 12 25 67 7 . . . 38 Message Errors 27 | . . . . . . 2 2 . . 4 2 4 7 1 . . . 5 Matter Fused 23 | . . . . . . . . . . 2 2 6 6 1 . . . 6 Heat Flow Errors 18 | . . . . . . . . . . 2 1 4 7 . . . . 4 Energy Discharges 20 | . . . 1 . . 3 . . 1 1 3 5 6 . . . . . Parts Rejected 4 | . . . . . . . . . . . 1 . 1 . . . . 2 Data Loss (minor) 12 | . . . . . . . . . . 2 1 . 6 1 . . . 2 Data Loss (major) 6 | . . . . . . . . . . . . . 4 . . . . 2 Misfires 4 | . . . . . . . . . . . . . 2 . . . . 2 Alerts 2 | . . . . . . . . . . . . 1 . . . . . 1 Misdirections 16 | . . . . . . . . . . . . 1 7 4 . . . 4 Targeting Errors 36 | . . . 1 . 1 2 3 . . . 2 3 17 . . . . 7 Weapon Failures 8 | . . . . . . . . . . . . 1 4 . . . . 3 Overload Shots . | . . . . . . . . . . . . . . . . . . . Overflow Damage 295 | . . . 19 5 . 37 . . . 1 5 . . . . . 12 216 Projectiles 76 | . . . . 5 . 18 . . . . . . . . . . 12 41 Explosions 219 | . . . 19 . . 19 . . . 1 5 . . . . . . 175 Melee . | . . . . . . . . . . . . . . . . . . . Knockbacks 16 | . . . . 2 1 . . . . . 5 . . . 1 5 . 2 Impact . | . . . . . . . . . . . . . . . . . . . Kinetic 15 | . . . . 2 1 . . . . . 4 . . . 1 5 . 2 Secondary 1 | . . . . . . . . . . . 1 . . . . . . . Self-Inflicted Damage 214 | . . 24 42 . . . 12 . . . . . . . . 135 . 1 Shots 6 | . . 1 2 . . . 2 . . . . . . . . 1 . . Rammed 1 | . . . . . . . . . . . . . . . . . . 1 Targets Rammed 1 | . . . . . . . . . . . . . . . . . . 1 Kicked . | . . . . . . . . . . . . . . . . . . . Crushed . | . . . . . . . . . . . . . . . . . . . Highest Temperature 477 | . 126 228 12 . . 56 . 17 26 233 176 223 268 . . . . 477 Average Temperature 102 | . 40 81 5 . . 10 . 6 13 30 38 98 98 . . . . 172 Received Heat Transfer 2752 | . 90 207 270 324 183 436 207 99 87 156 111 9 318 . 80 28 68 79 Effects 14 | . . 1 . . . . . . . . . . 1 . . . . 12 Shutdowns 7 | . . . . . . . . . . . . . . . . . . 7 Energy Bleed 2 | . . . . . . . . . . . . . 1 . . . . 1 Interference 2 | . . 1 . . . . . . . . . . . . . . . 1 Damage (major) 3 | . . . . . . . . . . . . . . . . . . 3 Siege Activations 1 | . . . . . . . . . . . . . 1 . . . . . Total Turns 14 | . . . . . . . . . . . . . 14 . . . . . Longest Duration 14 | . . . . . . . . . . . . . 14 . . . . . Robots Corrupted 1 | . . . . . . . . . . 1 . . . . . . . . Combat Hostiles 1 | . . . . . . . . . . 1 . . . . . . . . Parts Fried 4 | . . . . . . . . . . 3 . . 1 . . . . . Impact Corruptions . | . . . . . . . . . . . . . . . . . . . Robots Melted . | . . . . . . . . . . . . . . . . . . . Combat Hostiles . | . . . . . . . . . . . . . . . . . . . Parts Melted 11 | . . 1 . 3 . . . 1 1 1 1 . . . . . 2 1 Heat Transferred 5161 | . 250 420 . 666 . 900 . 296 259 666 111 . 74 . 187 . 592 740 Parts Sabotaged . | . . . . . . . . . . . . . . . . . . . Parts Stolen . | . . . . . . . . . . . . . . . . . . . Parts Stripped . | . . . . . . . . . . . . . . . . . . . Power Chain Reactions 1 | . . 1 . . . . . . . . . . . . . . . . Missiles Intercepted . | . . . . . . . . . . . . . . . . . . . Alert | -11 -10 -9 -8 -7 -6 -6 -6 -6 -6 -5 -4 -4 -4 -4 -3 -3 -2 -1 ------- Run | Scr Mat Mat Mat Fac Fac Ext Cet Arc Hub Fac Fac Upp Upp War Pro Res Res Acc Peak Influence 903 | . 225 352 293 169 177 386 553 254 203 235 505 . . . . 252 265 903 Initial 171 | . . 42 148 61 19 21 168 168 88 99 76 . . . . 171 93 152 Average 174 | . 88 190 112 60 71 192 364 211 125 91 349 . . . . 180 96 425 Maximum Alert Level 3 | . 1 1 1 . . 1 2 1 1 1 2 . . . . 1 1 3 Low Security (%) 72 | 100 94 57 92 100 100 58 7 45 90 97 17 . . . . 65 88 41 Level 1 17 | . 5 42 7 . . 41 43 54 9 2 40 . . . . 34 11 8 Level 2 6 | . . . . . . . 48 . . . 42 . . . . . . 18 Level 3 3 | . . . . . . . . . . . . . . . . . . 31 Level 4 . | . . . . . . . . . . . . . . . . . . . Level 5 . | . . . . . . . . . . . . . . . . . . . High Security . | . . . . . . . . . . . . . . . . . . . Max Security . | . . . . . . . . . . . . . . . . . . . Squads Dispatched 32 | . 3 1 2 2 8 3 1 . 1 4 . . 1 . . . 1 5 Investigation 7 | . 1 . . 1 . 3 1 . 1 . . . . . . . . . Extermination 10 | . . . . 1 3 . . . . 2 . . . . . . 1 3 Reinforcement 9 | . 2 1 2 . 1 . . . . 2 . . . . . . . 1 Assault 2 | . . . . . . . . . . . . . 1 . . . . 1 Garrison 4 | . . . . . 4 . . . . . . . . . . . . . Intercept . | . . . . . . . . . . . . . . . . . . . Construction Impeded 1 | . . . . . . . . . . . . . . . . . . 1 Haulers Reinforced . | . . . . . . . . . . . . . . . . . . . Stealth | -11 -10 -9 -8 -7 -6 -6 -6 -6 -6 -5 -4 -4 -4 -4 -3 -3 -2 -1 --------- Run | Scr Mat Mat Mat Fac Fac Ext Cet Arc Hub Fac Fac Upp Upp War Pro Res Res Acc Distress Signals 12 | . 3 2 . . . . 1 . . 1 1 . . . . . 2 2 Communications Jammed . | . . . . . . . . . . . . . . . . . . . Distress Signals . | . . . . . . . . . . . . . . . . . . . Times Spotted 288 | . 15 20 23 10 14 27 25 4 5 24 20 1 18 . 12 6 11 53 Peak Tracking Total 12 | . 5 5 5 3 4 6 5 2 3 5 7 1 10 . 4 3 8 12 Tactical Retreats 22 | . . . . 1 2 8 4 . . 2 . . 1 . . . . 4 Traps | -11 -10 -9 -8 -7 -6 -6 -6 -6 -6 -5 -4 -4 -4 -4 -3 -3 -2 -1 ------- Run | Scr Mat Mat Mat Fac Fac Ext Cet Arc Hub Fac Fac Upp Upp War Pro Res Res Acc Traps Triggered 6 | . 1 1 1 . . 1 . . . . . . . . . . 1 1 Indirectly . | . . . . . . . . . . . . . . . . . . . Trap Hack Attempts . | . . . . . . . . . . . . . . . . . . . Triggered . | . . . . . . . . . . . . . . . . . . . Disarmed . | . . . . . . . . . . . . . . . . . . . Reprogrammed . | . . . . . . . . . . . . . . . . . . . Reused . | . . . . . . . . . . . . . . . . . . . Traps Extracted . | . . . . . . . . . . . . . . . . . . . Installed . | . . . . . . . . . . . . . . . . . . . Triggered . | . . . . . . . . . . . . . . . . . . . Machines | -11 -10 -9 -8 -7 -6 -6 -6 -6 -6 -5 -4 -4 -4 -4 -3 -3 -2 -1 ---------- Run | Scr Mat Mat Mat Fac Fac Ext Cet Arc Hub Fac Fac Upp Upp War Pro Res Res Acc Machines Disabled 13 | . 1 1 . . . 4 1 . . . 1 . . . . 1 2 2 Max in Single Turn 1 | . 1 1 . . . 1 1 . . . 1 . . . . 1 1 1 Machines Sabotaged . | . . . . . . . . . . . . . . . . . . . Garrisons Compromised . | . . . . . . . . . . . . . . . . . . . Overloaded Fab Kills . | . . . . . . . . . . . . . . . . . . . Fab Network Shutdowns . | . . . . . . . . . . . . . . . . . . . Hacking | -11 -10 -9 -8 -7 -6 -6 -6 -6 -6 -5 -4 -4 -4 -4 -3 -3 -2 -1 --------- Run | Scr Mat Mat Mat Fac Fac Ext Cet Arc Hub Fac Fac Upp Upp War Pro Res Res Acc Machines Accessed 42 | . 3 1 3 3 6 7 3 1 2 7 1 . . 5 . . . . Terminals 31 | . 3 1 3 3 5 7 3 . 2 3 1 . . . . . . . Fabricators 2 | . . . . . . . . . . 2 . . . . . . . . Repair Stations . | . . . . . . . . . . . . . . . . . . . Recycling Units 1 | . . . . . . . . . . 1 . . . . . . . . Scanalyzers 1 | . . . . . . . . . . 1 . . . . . . . . Garrison Access 1 | . . . . . 1 . . . . . . . . . . . . . Total Hacks 130 | . 5 2 15 10 14 14 9 25 4 23 4 . . 5 . . . . Successful 72 | . 1 . 9 3 4 6 3 25 1 15 . . . 5 . . . . Failed 58 | . 4 2 6 7 10 8 6 . 3 8 4 . . . . . . . Catastrophic 14 | . 1 . 1 1 3 4 2 . 1 1 . . . . . . . . Database Lockouts . | . . . . . . . . . . . . . . . . . . . Manual 44 | . 5 2 8 5 5 2 . . 2 11 4 . . . . . . . Terminals 87 | . 5 2 15 10 13 14 9 . 4 11 4 . . . . . . . Fabricators 3 | . . . . . . . . . . 3 . . . . . . . . Repair Stations . | . . . . . . . . . . . . . . . . . . . Recycling Units 3 | . . . . . . . . . . 3 . . . . . . . . Scanalyzers 6 | . . . . . . . . . . 6 . . . . . . . . Garrison Access 1 | . . . . . 1 . . . . . . . . . . . . . Terminal Hacks 56 | . 1 . 6 2 3 6 3 25 . 5 . . . 5 . . . . Record 32 | . . . . . . . 2 25 . . . . . 5 . . . . Open Door 7 | . . . . . . 6 1 . . . . . . . . . . . Branch Access Points 1 | . . . . . 1 . . . . . . . . . . . . . Terminal Index 5 | . 1 . 1 1 1 . . . . 1 . . . . . . . . Unreport Threat 3 | . . . 2 . . . . . . 1 . . . . . . . . Locate Traps 3 | . . . . . 1 . . . . 2 . . . . . . . . Registered Components 1 | . . . 1 . . . . . . . . . . . . . . . Zone Layout 4 | . . . 2 1 . . . . . 1 . . . . . . . . Fabricator Hacks . | . . . . . . . . . . . . . . . . . . . Repair Station Hacks . | . . . . . . . . . . . . . . . . . . . Recycling Unit Hacks 2 | . . . . . . . . . . 2 . . . . . . . . Report Inventory 1 | . . . . . . . . . . 1 . . . . . . . . Retrieve Matter 1 | . . . . . . . . . . 1 . . . . . . . . Scanalyzer 5 | . . . . . . . . . . 5 . . . . . . . . Insert Component 3 | . . . . . . . . . . 3 . . . . . . . . Analyze 2 | . . . . . . . . . . 2 . . . . . . . . Garrison Access Hacks . | . . . . . . . . . . . . . . . . . . . Unauthorized Hacks 9 | . . . 3 1 1 . . . 1 3 . . . . . . . . Terminals 9 | . . . 3 1 1 . . . 1 3 . . . . . . . . Track 1 | . . . 1 . . . . . . . . . . . . . . . Botnet 8 | . . . 2 1 1 . . . 1 3 . . . . . . . . Fabricators . | . . . . . . . . . . . . . . . . . . . Repair Stations . | . . . . . . . . . . . . . . . . . . . Recycling Units . | . . . . . . . . . . . . . . . . . . . Scanalyzers . | . . . . . . . . . . . . . . . . . . . Garrison Access . | . . . . . . . . . . . . . . . . . . . Data Cores Recovered . | . . . . . . . . . . . . . . . . . . . Used . | . . . . . . . . . . . . . . . . . . . Hacking Detections 33 | . 3 1 3 3 6 5 2 . 2 7 1 . . . . . . . Full Trace Events 5 | . . . . 1 . 2 1 . 1 . . . . . . . . . Feedback Events . | . . . . . . . . . . . . . . . . . . . Feedback Blocked . | . . . . . . . . . . . . . . . . . . . Robot Schematics Acquired . | . . . . . . . . . . . . . . . . . . . Robots Built . | . . . . . . . . . . . . . . . . . . . Matter . | . . . . . . . . . . . . . . . . . . . Time . | . . . . . . . . . . . . . . . . . . . Total Robot Build Rating . | . . . . . . . . . . . . . . . . . . . Part Schematics Acquired 1 | . . . . . . . . . . 1 . . . . . . . . Parts Built . | . . . . . . . . . . . . . . . . . . . Matter . | . . . . . . . . . . . . . . . . . . . Time . | . . . . . . . . . . . . . . . . . . . Total Part Build Rating . | . . . . . . . . . . . . . . . . . . . Parts Repaired . | . . . . . . . . . . . . . . . . . . . Time . | . . . . . . . . . . . . . . . . . . . Parts Recycled . | . . . . . . . . . . . . . . . . . . . Recycled Matter . | . . . . . . . . . . . . . . . . . . . Retrieved Matter . | . . . . . . . . . . . . . . . . . . . Retrieved Components . | . . . . . . . . . . . . . . . . . . . Parts Scanalyzed 3 | . . . . . . . . . . 3 . . . . . . . . Part Schematics Acquired 1 | . . . . . . . . . . 1 . . . . . . . . Parts Damaged . | . . . . . . . . . . . . . . . . . . . Bothacking | -11 -10 -9 -8 -7 -6 -6 -6 -6 -6 -5 -4 -4 -4 -4 -3 -3 -2 -1 ------------ Run | Scr Mat Mat Mat Fac Fac Ext Cet Arc Hub Fac Fac Upp Upp War Pro Res Res Acc Used RIF Installer . | . . . . . . . . . . . . . . . . . . . Robots Hacked . | . . . . . . . . . . . . . . . . . . . Non-combat . | . . . . . . . . . . . . . . . . . . . Combat . | . . . . . . . . . . . . . . . . . . . Robot Hacks Applied . | . . . . . . . . . . . . . . . . . . . Relay Couplers Released . | . . . . . . . . . . . . . . . . . . . Robots Rewired 10 | . . . . . . 3 . . . . . . 2 5 . . . . Allies Hacked 4 | . . . . . . . . . . . . . . . . 4 . . Hacks Repelled 2 | . . . . . . . . . . . . . . . . 2 . . Allies | -11 -10 -9 -8 -7 -6 -6 -6 -6 -6 -5 -4 -4 -4 -4 -3 -3 -2 -1 -------- Run | Scr Mat Mat Mat Fac Fac Ext Cet Arc Hub Fac Fac Upp Upp War Pro Res Res Acc Total Allies 16 | . . . . . . 9 . . . . . . 2 5 . . . . Largest Group 9 | . . . . . . 9 . . . . . . 2 7 7 7 3 . Highest-Rated Group 371 | . . . . . . 371 . . . . . . 95 370 370 370 180 . Highest-Rated Ally 156 | . . . . . . 156 . . . . . . 48 60 60 60 60 . Total Orders 10 | . . . . . . 3 . . . . . . . . . 6 1 . STAY 6 | . . . . . . 2 . . . . . . . . . 3 1 . FOLLOW 4 | . . . . . . 1 . . . . . . . . . 3 . . Ally Attacks 140 | . . . . . . 86 . . . . . . . . 40 14 . . Total Damage 3459 | . . . . . . 1902 . . . . . . . . 1172 385 . . Kills 21 | . . . . . . 14 . . . . . . . . 6 1 . . Allies Corrupted 1 | . . . . . . . . . . . . . . . . 1 . . Allies Melted . | . . . . . . . . . . . . . . . . . . . Intel | -11 -10 -9 -8 -7 -6 -6 -6 -6 -6 -5 -4 -4 -4 -4 -3 -3 -2 -1 ------- Run | Scr Mat Mat Mat Fac Fac Ext Cet Arc Hub Fac Fac Upp Upp War Pro Res Res Acc Robot Analysis Total . | . . . . . . . . . . . . . . . . . . . Derelict Logs Recovered 2 | . . . . . . . . . . . . 2 . . . . . . Drone Launches . | . . . . . . . . . . . . . . . . . . . Drone Recoveries . | . . . . . . . . . . . . . . . . . . . Exploration | -11 -10 -9 -8 -7 -6 -6 -6 -6 -6 -5 -4 -4 -4 -4 -3 -3 -2 -1 ------------- Run | Scr Mat Mat Mat Fac Fac Ext Cet Arc Hub Fac Fac Upp Upp War Pro Res Res Acc Turns Passed 12842 | 66 492 745 968 939 1077 883 549 369 183 1329 489 537 900 717 399 588 581 1031 Spaces Moved 6572 | 43 334 334 486 416 556 413 232 153 101 653 191 300 426 381 221 360 349 623 Core 204 | 20 . . . . . . . . . . . . . . . . . 184 Treads 4689 | . . 306 486 416 556 413 232 153 101 652 191 300 426 381 76 . . . Legs 1494 | 23 334 28 . . . . . . . 1 . . . . 145 360 349 254 Wheels 89 | . . . . . . . . . . . . . . . . . . 89 Hover 96 | . . . . . . . . . . . . . . . . . . 96 Flight . | . . . . . . . . . . . . . . . . . . . Fastest Speed 50 | 50 120 160 160 160 160 160 160 160 160 160 155 155 155 160 120 120 120 50 Average Speed 150 | 124 123 163 160 169 161 160 160 160 160 163 158 164 157 160 161 120 121 111 Slowest Speed 360 | 200 150 200 160 180 180 160 160 160 160 270 180 172 172 160 210 120 150 360 Overloaded Moves . | . . . . . . . . . . . . . . . . . . . Propulsion Burnouts . | . . . . . . . . . . . . . . . . . . . Robots Hopped . | . . . . . . . . . . . . . . . . . . . Cave-ins Triggered 2 | . . . . . . . . . . . . 1 . . . . . 1 Exploration Rate (%) 35 | 4 57 37 35 13 18 59 81 85 16 21 5 58 51 56 39 8 8 21 Regions Visited 18 Branch Regions 8 Pre-discovered Areas 1 | . . . . . . . . . . . . 1 . . . . . . Known Exits Taken 12 | . 1 1 1 . 1 . . . . 1 1 1 1 1 1 1 1 . Unknown Exits Taken 6 | 1 . . . 1 . 1 1 1 1 . . . . . . . . . Scrap Searched 7 | . . . . . . . . . . . . 3 3 . 1 . . . Spaces Dug 41 | . . . 6 3 5 2 . 1 . 9 . 5 . . . 2 4 4 Terrain Destroyed 412 | . 15 4 51 5 11 21 26 1 1 29 15 6 4 . 7 20 27 169 Melee 32 | . . . . . 5 2 . 1 . 9 . 5 . . . 2 4 4 Projectile 65 | . . . 6 5 6 6 6 . 1 4 7 1 4 . 7 4 1 7 AOE 315 | . 15 4 45 . . 13 20 . . 16 8 . . . . 14 22 158 Terrain Rammed . | . . . . . . . . . . . . . . . . . . . Walls Destroyed . | . . . . . . . . . . . . . . . . . . . Machines Disabled . | . . . . . . . . . . . . . . . . . . . Actions | -11 -10 -9 -8 -7 -6 -6 -6 -6 -6 -5 -4 -4 -4 -4 -3 -3 -2 -1 --------- Run | Scr Mat Mat Mat Fac Fac Ext Cet Arc Hub Fac Fac Upp Upp War Pro Res Res Acc Total 8520 | 52 382 469 609 581 677 549 345 247 111 825 305 325 548 489 242 483 458 823 Wait 660 | . 20 42 41 83 46 39 43 59 . 67 22 9 22 7 . 70 66 24 Move 6553 | 42 333 333 485 415 555 412 231 152 100 652 190 298 425 380 220 359 348 623 Hop . | . . . . . . . . . . . . . . . . . . . Pick Up 131 | 4 3 18 13 13 10 5 5 4 1 12 14 1 7 2 1 8 3 7 Fast Attach 98 | 6 1 7 4 4 4 2 5 1 . 6 6 . 10 3 8 5 3 23 Attach 65 | . . 2 2 5 4 4 3 1 1 10 5 1 10 1 1 1 3 11 Detach 27 | . . 2 . 2 . 3 3 . . 3 1 1 . . . 1 . 11 Swap 107 | . 4 9 13 4 9 11 3 3 . 13 8 3 4 . . 8 6 9 Drop 141 | . 3 18 16 12 15 6 7 4 1 8 13 1 3 1 2 10 3 18 Fire 561 | . 18 38 35 43 29 50 45 22 8 44 46 4 47 . 10 14 20 88 Melee 51 | . . . . . 5 5 . 1 . 10 . 6 6 . . 4 6 8 Ram 1 | . . . . . . . . . . . . . . . . . . 1 Kick . | . . . . . . . . . . . . . . . . . . . Crush . | . . . . . . . . . . . . . . . . . . . Escape Stasis 1 | . . . . . . . . . . . . 1 . . . . . . Rewire 124 | . . . . . . 12 . . . . . . 14 95 . 3 . . Trap . | . . . . . . . . . . . . . . . . . . . Miscellaneous . | . . . . . . . . . . . . . . . . . . . Route ------- -11/Scrapyard -10/Materials (discovered 2 exits: *Mat / [*Min]) -9/Materials (discovered 3 exits: *Mat / *Min x2) -8/Materials -7/Factory -6/Factory (discovered 4 exits: Low x2 / *Ext x2) -6/Extension (discovered 3 exits: *Fac x2 / *Cet) -6/Cetus -6/Archives (discovered 3 exits: *Fac / *Hub x2) -6/Hub_04(d) -5/Factory -4/Factory -4/Upper Caves -4/Upper Caves -4/Warlord -3/Proximity Caves -3/Research -2/Research -1/Access History --------- Turn | Location | Event 13 | -11/Scrapyard | Discovered new exit (range 15) 67 | -11/Scrapyard | Entered Materials 116 | -10/Materials | Discovered new exit (range 6) 315 | -10/Materials | Build established: Mutant 506 | -10/Materials | Discovered new exit (range 15) 558 | -10/Materials | Identified exit to Materials 559 | -10/Materials | Entered another Materials area 559 | -9/Materials | Evolved 2 slots: Propulsion x1, Utility x1 916 | -9/Materials | Discovered new exit (range 13) 936 | -9/Materials | Identified exit to Mines 1068 | -9/Materials | Discovered exit to Mines (range 5) 1133 | -9/Materials | Discovered new exit (range 15) 1146 | -9/Materials | Build established: Scavenger-Mutant 1262 | -9/Materials | Identified exit to Materials 1304 | -9/Materials | Entered another Materials area 1304 | -8/Materials | Evolved 2 slots: Utility x2 1968 | -8/Materials | Discovered new exit (range 12) 2016 | -8/Materials | Identified exit to Factory 2272 | -8/Materials | Entered Factory 2272 | -7/Factory | Evolved 2 slots: Propulsion x1, Utility x1 2429 | -7/Factory | Build established: Mutant 3111 | -7/Factory | Discovered new exit (range 12) 3211 | -7/Factory | Entered another Factory area 3211 | -6/Factory | Evolved 2 slots: Utility x2 3281 | -6/Factory | Garrison activated, responded to threat 3291 | -6/Factory | Spotted B-75 Beast 3525 | -6/Factory | Garrison activated, responded to threat 3984 | -6/Factory | Identified exit to Lower Caves 3984 | -6/Factory | Identified exit to Extension 4288 | -6/Factory | Entered Extension 4341 | -6/Extension | Rescued a captive Derelict 4502 | -6/Extension | Rescued a captive Derelict 4528 | -6/Extension | Rescued a captive Derelict 4559 | -6/Extension | Rescued A7 4604 | -6/Extension | Rescued a captive Derelict 4605 | -6/Extension | Rescued a captive Derelict 4636 | -6/Extension | Spotted B-75 Beast 4661 | -6/Extension | Spotted B-75 Beast 4688 | -6/Extension | Allies destroyed B-75 Beast 4690 | -6/Extension | Extracted ID and sensor layout for unrecognized location from A7's data core 4694 | -6/Extension | Allies destroyed B-75 Beast 4776 | -6/Extension | Discovered new exit (range 3) 5132 | -6/Extension | Discovered new exit (range 20) 5132 | -6/Extension | Discovered new exit (range 20) 5171 | -6/Extension | Entered Cetus 5191 | -6/Cetus | Spotted Cetus Guard 5191 | -6/Cetus | Spotted Cetus Guard 5192 | -6/Cetus | Spotted Cetus Guard 5203 | -6/Cetus | Spotted Cetus Guard 5210 | -6/Cetus | Destroyed Cetus Guard 5210 | -6/Cetus | Destroyed Cetus Guard 5219 | -6/Cetus | Destroyed Cetus Guard 5240 | -6/Cetus | Destroyed Cetus Guard 5595 | -6/Cetus | Build established: Scavenger-Mutant 5689 | -6/Cetus | Discovered new exit (range 20) 5720 | -6/Cetus | Entered Archives 5920 | -6/Archives | Core integrity fell below 50% 6019 | -6/Archives | Unable to access archive contents 6030 | -6/Archives | Discovered new exit (range 20) 6035 | -6/Archives | Discovered new exit (range 20) 6044 | -6/Archives | Unable to access archive contents 6056 | -6/Archives | Discovered new exit (range 20) 6060 | -6/Archives | Unable to access archive contents 6089 | -6/Archives | Entered Hub_04(d) 6219 | -6/Hub_04(d) | Discovered new exit (range 4) 6272 | -6/Hub_04(d) | Entered Factory 6272 | -5/Factory | Evolved 2 slots: Utility x2 6465 | -5/Factory | Found Imp. Powered Armor 7426 | -5/Factory | Discovered new exit (range 15) 7473 | -5/Factory | Identified exit to Factory 7490 | -5/Factory | Lost 3 parts (3u) 7507 | -5/Factory | Spotted B-75 Beast 7601 | -5/Factory | Entered another Factory area 7601 | -4/Factory | Evolved 2 slots: Power x1, Utility x1 7605 | -4/Factory | Discovered new exit (range 19) 7710 | -4/Factory | Lost 3 parts (1p1u1w) 7735 | -4/Factory | Destroyed 10 combat bots 7820 | -4/Factory | Lost 4 parts (2n2w) 7850 | -4/Factory | Destroyed 7 combat bots 7941 | -4/Factory | Identified exit to Upper Caves 8090 | -4/Factory | Entered Upper Caves 8094 | -4/Upper Caves | Learned location of Quarantine (-2) 8122 | -4/Upper Caves | Encountered a Warlord checkpoint 8319 | -4/Upper Caves | Crushed by falling debris 8320 | -4/Upper Caves | System corruption reached 10% 8507 | -4/Upper Caves | Learned Research garrison access intel 8571 | -4/Upper Caves | Attracted the attention of an 0b10 checkpoint 8605 | -4/Upper Caves | Discovered new exit (range 14) 8626 | -4/Upper Caves | Identified exit to Upper Caves 8627 | -4/Upper Caves | Entered another Upper Caves area 9132 | -4/Upper Caves | Attracted the attention of an 0b10 outpost 9214 | -4/Upper Caves | Lost 5 parts (4u1w) 9265 | -4/Upper Caves | Core integrity fell below 50% 9275 | -4/Upper Caves | Core integrity fell below 20% 9309 | -4/Upper Caves | Lost 17 parts (3p3n6u5w) 9509 | -4/Upper Caves | Discovered new exit (range 11) 9525 | -4/Upper Caves | Identified exit to Warlord 9527 | -4/Upper Caves | Entered Warlord 9527 | -4/Warlord | Accompanied by 2 allies 9590 | -4/Warlord | System corruption cleaned by Quarantine Array 10177 | -4/Warlord | Discovered new exit (range 15) 10196 | -4/Warlord | Build established: Commander-Mutant 10236 | -4/Warlord | Identified exit to Proximity Caves 10244 | -4/Warlord | Entered Proximity Caves 10244 | -3/Proximity Caves | Accompanied by 7 allies 10622 | -3/Proximity Caves | Discovered new exit (range 10) 10632 | -3/Proximity Caves | Identified exit to Research 10643 | -3/Proximity Caves | Entered Research 10643 | -3/Research | Accompanied by 7 allies 10643 | -3/Research | Evolved 2 slots: Utility x2 10644 | -3/Research | Loaded intel: 3 garrison access locations 10674 | -3/Research | Build established: Scavenger-Mutant 10819 | -3/Research | Found Prototype Launcher 10914 | -3/Research | Found Prototype Launcher 11041 | -3/Research | Build established: Commander-Mutant 11084 | -3/Research | Discovered new exit (range 6) 11128 | -3/Research | Identified exit to Research 11231 | -3/Research | Entered another Research area 11231 | -2/Research | Accompanied by 3 allies 11231 | -2/Research | Evolved 2 slots: Utility x2 11481 | -2/Research | Build established: Scavenger-Mutant 11738 | -2/Research | Discovered new exit (range 13) 11739 | -2/Research | Identified Mni. Smartbomb Launcher 11740 | -2/Research | Identified Adv. Micro-nuke Launcher 11801 | -2/Research | Destroyed 8 combat bots 11810 | -2/Research | Identified exit to Access 11812 | -2/Research | Entered Access 11812 | -1/Access | Evolved 2 slots: Utility x1, Weapon x1 11824 | -1/Access | Lost 5 parts (1p1n3u) 11967 | -1/Access | Spotted B-99 Colossus 12012 | -1/Access | Build established: Mutant 12312 | -1/Access | Destroyed 8 combat bots 12373 | -1/Access | Lost 4 parts (2u2w) 12435 | -1/Access | System corruption reached 10% 12562 | -1/Access | First assault squad dispatched 12594 | -1/Access | Lost 21 parts (4p6n6u5w) 12755 | -1/Access | Core integrity fell below 50% 12824 | -1/Access | Core integrity fell below 20% 12835 | -1/Access | Crushed by falling debris 12843 | -1/Access | Destroyed by S-43 Plague with Heavy Machine Gun Last Messages --------------- 12806_ V5/%%6LIW/EH:H|O6RSX Z0ZI&DILCJZGYAT|J> 12812_ ALERT: Rogue bot located, Programmers report to Access Zone 4U. 12817_ Penetrated by Slug. 12817_ Slug penetrates Wall. 12820_ Penetrated by Slug. 12820_ Slug penetrates Wall. 12823_ Penetrated by Slug. 12823_ Slug penetrates Wall. 12827_ Slug penetrates Terminal. 12830_ Slug penetrates Wall. 12832_ Adv. Signal Interpreter destroyed. 12833_ UQU8=LNYCNWEW NY:L4Z 9<9IJ:IAAV